bitfinex/quotes_BTCUSD_20220105
["timestamp","ask_amount","ask_price","bid_price","bid_amount"]
[1641361595986,0.62280742,46267.0,46266.0,0.30554061]
[1641361596187,0.62280742,46267.0,46266.0,0.31954061]
[1641361597392,0.62280742,46267.0,46266.0,0.30554061]
[1641361598237,0.62280742,46267.0,46266.0,0.31954061]
[1641361599439,0.62280742,46267.0,46266.0,0.30554061]
[1641361600242,0.62280742,46267.0,46266.0,0.31954061]
[1641361601440,0.62280742,46267.0,46266.0,0.30554061]
[1641361602191,0.62280742,46267.0,46266.0,0.31854061]
[1641361603391,0.62280742,46267.0,46266.0,0.30554061]
[1641361603692,1.04280742,46267.0,46266.0,0.30554061]
[1641361604295,1.04280742,46267.0,46266.0,0.11192577]
[1641361604491,1.04280742,46267.0,46266.0,0.06192577]
[1641361605494,1.04280742,46267.0,46266.0,0.04892577]
[1641361606146,1.04280742,46267.0,46266.0,0.06192577]
[1641361606345,1.04280742,46267.0,46266.0,0.26717273]
[1641361607546,1.04280742,46267.0,46266.0,0.25417273]
[1641361608347,1.04280742,46267.0,46266.0,0.26717273]
[1641361608546,1.04280742,46267.0,46266.0,0.31717273]
[1641361609588,1.04280742,46267.0,46266.0,0.30417273]
[1641361610192,1.04280742,46267.0,46266.0,0.31717273]
[1641361610992,1.04280742,46267.0,46266.0,0.26717273]
[1641361611391,1.04280742,46267.0,46266.0,0.25417273]
[1641361611692,1.04280742,46267.0,46266.0,0.30417273]
[1641361612294,1.04280742,46267.0,46266.0,0.31817273]
[1641361613543,1.04280742,46267.0,46266.0,0.30417273]
[1641361614342,1.04280742,46267.0,46266.0,0.31817273]
[1641361615548,1.04280742,46267.0,46266.0,0.30417273]
[1641361616344,1.04280742,46267.0,46266.0,0.31817273]
[1641361617591,1.04280742,46267.0,46266.0,0.30417273]
[1641361618393,1.04280742,46267.0,46266.0,0.31817273]
[1641361618792,1.04280742,46267.0,46266.0,0.26817273]
[1641361619593,1.04280742,46267.0,46266.0,0.25417273]
[1641361620394,1.04280742,46267.0,46266.0,0.26717273]
[1641361621539,1.04280742,46267.0,46266.0,0.25417273]
[1641361622342,1.04280742,46267.0,46266.0,0.31717273]
[1641361623643,1.04280742,46267.0,46266.0,0.30417273]
[1641361624391,1.04280742,46267.0,46266.0,0.06192577]
[1641361624592,1.04280742,46267.0,46266.0,0.11192577]
[1641361624891,1.04280742,46267.0,46266.0,0.06192577]
[1641361625093,1.04280742,46267.0,46266.0,0.31662821]
[1641361625495,1.04280742,46267.0,46266.0,0.30362821]
[1641361626290,1.04280742,46267.0,46266.0,0.31662821]
[1641361627295,1.04280742,46267.0,46266.0,0.94662821]
[1641361627493,0.93788044,46267.0,46266.0,1.28925221]
[1641361627696,0.93788044,46267.0,46266.0,3.13715221]
[1641361627893,0.93788044,46267.0,46266.0,3.24593221]
[1641361628342,0.93788044,46267.0,46266.0,3.26193221]
[1641361628747,0.93788044,46267.0,46266.0,3.31595909]
[1641361629543,0.93788044,46267.0,46266.0,3.29995909]
[1641361629944,0.21178044,46267.0,46266.0,3.37606111]
[1641361630144,0.21178044,46267.0,46266.0,3.30118111]
[1641361630343,0.21178044,46267.0,46266.0,3.32218111]
[1641361631893,0.21178044,46267.0,46266.0,3.30118111]
[1641361632290,0.21178044,46267.0,46266.0,3.32318111]
[1641361632894,0.0124104,46272.0,46271.0,1.65887141]
[1641361633095,0.0124104,46272.0,46271.0,3.21194]
[1641361634295,0.42,46280.0,46271.0,3.23294]
[1641361634494,0.42,46280.0,46274.0,0.16205338]
[1641361634694,0.42,46280.0,46278.0,0.355567]
[1641361634895,0.42,46280.0,46278.0,0.26231183]
[1641361635094,0.84,46280.0,46278.0,0.31231183]
[1641361635294,0.84,46280.0,46278.0,0.3127007]
[1641361635742,0.84,46280.0,46279.0,0.91056227]
[1641361635943,0.84,46280.0,46279.0,0.25886227]
[1641361636343,0.84,46280.0,46279.0,0.27386227]
[1641361637544,0.84,46280.0,46279.0,0.25886227]
[1641361637745,0.84,46280.0,46279.0,0.61448627]
[1641361638344,0.84,46280.0,46279.0,0.62948627]
[1641361638545,0.84,46280.0,46279.0,0.418924]
[1641361639491,0.84,46280.0,46279.0,0.403924]
[1641361640191,0.84,46280.0,46279.0,0.61208577]
[1641361640390,0.84,46280.0,46279.0,0.62608577]
[1641361641193,0.84,46280.0,46279.0,0.98608577]
[1641361641393,0.84,46280.0,46279.0,0.62608577]
[1641361641591,0.84,46280.0,46279.0,0.61208577]
[1641361642393,0.84,46280.0,46279.0,0.62608577]
[1641361643648,0.84,46280.0,46279.0,0.61208577]
[1641361644452,0.84,46280.0,46279.0,0.62608577]
[1641361645649,0.84,46280.0,46279.0,0.61208577]
[1641361646249,0.84,46280.0,46279.0,0.61247378]
[1641361646450,0.84,46280.0,46279.0,0.62547378]
[1641361647596,0.84,46280.0,46279.0,0.61247378]
[1641361648395,0.84,46280.0,46279.0,0.62547378]
[1641361649597,0.84,46280.0,46279.0,0.61247378]
[1641361650395,0.84,46280.0,46279.0,0.62647378]
[1641361651649,0.84,46280.0,46279.0,0.61247378]
[1641361652451,0.84,46280.0,46279.0,0.62547378]
[1641361653652,0.84,46280.0,46279.0,0.61247378]
[1641361654491,0.84,46280.0,46279.0,0.62647378]
[1641361654692,0.84,46280.0,46279.0,0.62715765]
[1641361654898,0.84,46280.0,46279.0,1.01715765]
[1641361655695,0.84,46280.0,46279.0,1.00315765]
[1641361656094,0.84,46280.0,46279.0,0.61315765]
[1641361656295,0.84,46280.0,46279.0,0.62715765]
[1641361657500,0.84,46280.0,46279.0,0.41899588]
[1641361658443,0.84,46280.0,46279.0,0.43199588]
[1641361658643,0.84,46280.0,46279.0,0.07637188]
[1641361659645,0.84,46280.0,46279.0,0.04937188]
[1641361660550,0.84,46280.0,46279.0,0.06337188]
[1641361661549,0.84,46280.0,46279.0,0.04937188]
[1641361662398,0.84,46280.0,46279.0,0.06337188]
[1641361663395,0.84,46280.0,46279.0,0.41899588]
[1641361663797,0.84,46280.0,46279.0,0.40499588]
[1641361664494,0.84,46280.0,46279.0,0.41899588]
[1641361664696,0.84,46280.0,46279.0,0.63731544]
[1641361665641,0.84,46280.0,46279.0,0.41899588]
[1641361666243,0.84,46280.0,46279.0,0.40499588]
[1641361666446,0.84,46280.0,46279.0,0.41899588]
[1641361667646,0.84,46280.0,46279.0,0.40499588]
[1641361668446,0.84,46280.0,46279.0,0.41899588]
[1641361669497,0.84,46280.0,46279.0,0.63457822]
[1641361669696,0.84,46280.0,46279.0,0.62057822]
[1641361670502,0.84,46280.0,46279.0,0.63457822]
[1641361671699,0.84,46280.0,46279.0,0.62057822]
[1641361672500,0.84,46280.0,46279.0,0.63457822]
[1641361673349,0.84,46280.0,46279.0,0.41899588]
[1641361673749,0.84,46280.0,46279.0,0.40499588]
[1641361674349,0.84,46280.0,46279.0,0.41899588]
[1641361675150,0.84,46280.0,46279.0,0.63816457]
[1641361675350,0.84,46280.0,46279.0,0.41899588]
[1641361675754,0.84,46280.0,46279.0,0.93499588]
[1641361676351,0.84,46280.0,46279.0,0.41899588]
[1641361677398,0.84,46280.0,46279.0,0.6585241]
[1641361677798,0.84,46280.0,46279.0,0.9945241]
[1641361678403,0.84,46280.0,46279.0,1.0095241]
[1641361678600,0.84,46280.0,46279.0,0.6595241]
[1641361679001,0.84,46280.0,46279.0,0.6545241]
[1641361679303,0.84,46280.0,46279.0,1.7985241]
[1641361679604,0.84,46280.0,46279.0,1.7835241]
[1641361679901,0.84,46280.0,46279.0,0.6395241]
[1641361680101,0.84,46280.0,46279.0,1.7835241]
[1641361680501,0.84,46280.0,46279.0,1.8065241]
[1641361681548,0.84,46280.0,46279.0,2.4104241]
[1641361681750,0.84,46280.0,46279.0,2.3874241]
[1641361682551,0.84,46280.0,46279.0,2.4114241]
[1641361683751,0.84,46280.0,46279.0,2.3874241]
[1641361684400,0.84,46280.0,46279.0,2.4084241]
[1641361685602,0.84,46280.0,46279.0,2.3874241]
[1641361686404,0.84,46280.0,46279.0,2.16689588]
[1641361686605,0.84,46280.0,46279.0,3.76346588]
[1641361686606,0.42,46280.0,46279.0,3.76346588]
[1641361686802,0.42,46280.0,46279.0,3.8147419]
[1641361687004,0.42,46280.0,46279.0,4.0267469]
[1641361687203,0.07269576,46284.0,46282.0,0.053993]
[1641361687401,0.42,46293.0,46284.0,1.22]
[1641361687606,0.42,46293.0,46290.0,0.6039]
[1641361687803,0.42,46293.0,46291.0,1.1923]
[1641361688003,0.42,46293.0,46292.0,1.135624]
[1641361688266,0.42,46293.0,46292.0,1.233924]
[1641361688465,0.42,46293.0,46292.0,1.250924]
[1641361688666,0.42,46293.0,46292.0,0.47130098]
[1641361688870,0.42,46293.0,46292.0,0.65385559]
[1641361689668,0.42,46293.0,46292.0,2.28085559]
[1641361689968,0.42,46293.0,46292.0,1.83085559]
[1641361690369,0.42,46293.0,46292.0,1.83151236]
[1641361690570,0.42,46293.0,46292.0,1.96794236]
[1641361691069,0.42,46293.0,46292.0,1.96922528]
[1641361691479,0.42,46293.0,46292.0,2.28922528]
[1641361691668,0.4208034,46294.0,46293.0,1.144]
[1641361691901,0.4208034,46294.0,46293.0,1.547924]
[1641361692299,0.4158034,46294.0,46293.0,1.547924]
[1641361692499,0.4158034,46294.0,46293.0,2.173824]
[1641361692698,0.415,46294.0,46293.0,2.173824]
[1641361693701,0.415,46294.0,46293.0,2.151824]
[1641361694500,0.415,46294.0,46293.0,2.173824]
[1641361694903,0.415,46294.0,46293.0,2.473824]
[1641361695104,0.00080391,46296.0,46293.0,2.473824]
[1641361695105,0.00080391,46296.0,46295.0,1.62]
[1641361695304,0.00080391,46296.0,46295.0,2.627824]
[1641361695678,0.01240981,46303.0,46302.0,2.78598246]
[1641361695871,0.01240981,46303.0,46302.0,4.42406646]
[1641361696271,0.0045,46313.0,46302.0,4.47804646]
[1641361696472,0.01240957,46308.0,46303.0,0.355624]
[1641361696674,0.01240957,46308.0,46307.0,1.13358]
[1641361696869,0.01240957,46308.0,46307.0,1.65588]
[1641361698170,0.01,46314.0,46307.0,1.65588]
[1641361698470,0.01,46314.0,46307.0,1.67688]
[1641361698669,0.01,46314.0,46307.0,0.53288]
[1641361698870,0.0539819,46311.0,46307.0,0.474924]
[1641361699070,0.0539819,46311.0,46310.0,0.053984]
[1641361699274,0.0539819,46311.0,46310.0,0.102284]
[1641361699904,0.0539819,46311.0,46310.0,0.45826971]
[1641361700503,0.0539819,46311.0,46310.0,0.47726971]
[1641361701706,0.01,46314.0,46310.0,0.47726971]
[1641361701912,0.01,46314.0,46310.0,0.10264571]
[1641361702107,0.0107879,46314.0,46310.0,0.10264571]
[1641361702507,0.0107879,46314.0,46310.0,0.11864571]
[1641361703346,0.0107879,46314.0,46310.0,0.33368932]
[1641361703745,0.0107879,46314.0,46310.0,1.46204805]
[1641361703945,0.0107879,46314.0,46313.0,0.355624]
[1641361704245,0.0107879,46314.0,46313.0,0.457898]
[1641361704449,0.0107879,46314.0,46313.0,0.474898]
[1641361704645,0.0107879,46314.0,46313.0,0.119274]
[1641361705745,0.0107879,46314.0,46313.0,0.102274]
[1641361706548,0.0107879,46314.0,46313.0,0.120274]
[1641361707005,0.0107879,46314.0,46313.0,0.33310692]
[1641361707197,0.0107879,46314.0,46313.0,0.120274]
[1641361707796,0.0107879,46314.0,46313.0,0.31603019]
[1641361707997,0.01,46314.0,46313.0,0.31603019]
[1641361708398,0.01,46314.0,46313.0,0.73603019]
[1641361708598,0.01,46314.0,46313.0,0.68865419]
[1641361708797,0.01,46314.0,46313.0,0.474898]
[1641361709798,0.01,46314.0,46313.0,0.457898]
[1641361710399,0.01,46314.0,46313.0,0.80855492]
[1641361710641,0.01,46314.0,46313.0,0.82591409]
[1641361710940,0.01,46314.0,46313.0,0.94525781]
[1641361711142,0.01,46314.0,46313.0,0.59525781]
[1641361711743,0.01,46314.0,46313.0,0.45891409]
[1641361712247,0.01,46314.0,46313.0,0.85891409]
[1641361712645,0.01,46314.0,46313.0,0.87691409]
[1641361713145,0.01,46314.0,46313.0,1.02691409]
[1641361713544,0.01,46314.0,46313.0,0.62691409]
[1641361713743,0.01,46314.0,46313.0,0.47691409]
[1641361713944,0.01,46314.0,46313.0,0.50891409]
[1641361714394,0.01,46314.0,46313.0,1.05891409]
[1641361714594,0.01,46314.0,46313.0,1.07891409]
[1641361714994,0.01,46314.0,46313.0,0.47891409]
[1641361715796,0.01,46314.0,46313.0,0.50891409]
[1641361715995,0.01,46314.0,46313.0,0.67126538]
[1641361716195,0.01,46314.0,46313.0,0.89891409]
[1641361716595,0.01,46314.0,46313.0,0.91891409]
[1641361717696,0.01,46314.0,46313.0,0.50891409]
[1641361718148,0.01,46314.0,46313.0,1.65291409]
[1641361718547,0.01,46314.0,46313.0,1.67291409]
[1641361719950,0.01,46314.0,46313.0,1.65291409]
[1641361720546,0.01,46314.0,46313.0,1.67391409]
[1641361720946,0.01,46314.0,46313.0,1.62391409]
[1641361721892,0.01,46314.0,46313.0,1.60291409]
[1641361722599,0.01,46314.0,46313.0,1.62391409]
[1641361722792,0.01,46314.0,46313.0,1.67391409]
[1641361723894,0.01,46314.0,46313.0,1.65291409]
[1641361724094,0.01,46314.0,46313.0,2.35681409]
[1641361724594,0.01,46314.0,46313.0,2.37881409]
[1641361725747,0.01,46314.0,46313.0,2.87881409]
[1641361725954,0.01,46314.0,46313.0,2.85681409]
[1641361726554,0.01,46314.0,46313.0,2.87981409]
[1641361727352,0.01,46314.0,46313.0,2.37981409]
[1641361727751,0.01,46314.0,46313.0,2.35681409]
[1641361728551,0.01,46314.0,46313.0,2.38181409]
[1641361729797,0.01,46314.0,46313.0,2.35681409]
[1641361730601,0.01,46314.0,46313.0,2.38181409]
[1641361731800,0.00078869,46316.0,46314.0,1.42]
[1641361732001,0.00078869,46316.0,46315.0,3.51262614]
[1641361732502,0.00078869,46316.0,46315.0,3.61262614]
[1641361732702,0.00078869,46316.0,46315.0,3.63662614]
[1641361732901,0.0039577,46319.0,46315.0,3.9524899]
[1641361733151,0.0039577,46319.0,46318.0,1.013487]
[1641361733347,0.0039577,46319.0,46318.0,2.255787]
[1641361733546,0.0039577,46319.0,46318.0,2.355787]
[1641361734548,0.0039577,46319.0,46318.0,2.378787]
[1641361736148,0.0039577,46319.0,46318.0,2.3794439]
[1641361736546,0.0039577,46319.0,46318.0,2.3804439]
[1641361737200,0.0039577,46319.0,46318.0,1.2364439]
[1641361737593,0.0039577,46319.0,46318.0,2.3804439]
[1641361738593,0.0039577,46319.0,46318.0,2.4044439]
[1641361738793,0.0039577,46319.0,46318.0,2.3544439]
[1641361739793,0.0039577,46319.0,46318.0,2.3564439]
[1641361739994,0.0039577,46319.0,46318.0,1.2124439]
[1641361740758,0.0039577,46319.0,46318.0,1.2314439]
[1641361741154,0.0039577,46319.0,46318.0,2.3754439]
[1641361741555,0.0039577,46319.0,46318.0,2.37422595]
[1641361741754,0.0039577,46319.0,46318.0,1.23022595]
[1641361741954,0.0039577,46319.0,46318.0,1.21122595]
[1641361742154,0.0039577,46319.0,46318.0,1.21158088]
[1641361742555,0.0039577,46319.0,46318.0,1.23058088]
[1641361742754,0.0039577,46319.0,46318.0,2.37458088]
[1641361743359,0.00273905,46319.0,46318.0,2.37458088]
[1641361743755,0.00273905,46319.0,46318.0,2.32579883]
[1641361743955,0.00273905,46319.0,46318.0,2.30679883]
[1641361744598,0.00273905,46319.0,46318.0,2.32579883]
[1641361744995,0.00273905,46319.0,46318.0,1.18179883]
[1641361746397,0.00273905,46319.0,46318.0,1.16279883]
[1641361746598,0.00273905,46319.0,46318.0,1.18179883]
[1641361748000,0.00273905,46319.0,46318.0,1.08179883]
[1641361748450,0.00273905,46319.0,46318.0,1.06279883]
[1641361748649,0.00273905,46319.0,46318.0,1.09179883]
[1641361749245,0.21843279,46319.0,46318.0,1.09179883]
[1641361749846,0.21843279,46319.0,46318.0,0.70717483]
[1641361750449,0.00273905,46319.0,46318.0,0.70717483]
[1641361750650,0.21882129,46319.0,46318.0,0.72817483]
[1641361750849,0.00273905,46319.0,46318.0,0.72817483]
[1641361751920,0.00273905,46319.0,46318.0,0.70717483]
[1641361752621,0.00273905,46319.0,46318.0,0.72917483]
[1641361753925,0.00273905,46319.0,46318.0,0.70717483]
[1641361754721,0.00273905,46319.0,46318.0,0.72917483]
[1641361755955,0.00273905,46319.0,46318.0,0.70717483]
[1641361756757,0.00273905,46319.0,46318.0,0.72917483]
[1641361757957,0.00273905,46319.0,46318.0,0.70717483]
[1641361758357,0.22129461,46319.0,46318.0,0.70717483]
[1641361758561,0.22129461,46319.0,46318.0,0.00101183]
[1641361758562,0.27129461,46319.0,46318.0,0.00101183]
[1641361758761,0.62813114,46319.0,46318.0,0.02101183]
[1641361758958,0.72813114,46319.0,46318.0,1.183e-05]
[1641361759162,0.05399002,46310.0,46300.0,0.22467615]
[1641361759412,0.26995206,46312.0,46299.0,0.0647961]
[1641361759413,0.053992,46307.0,46299.0,0.0647961]
[1641361759606,0.33443287,46309.0,46302.0,0.053993]
[1641361759809,0.00121778,46309.0,46302.0,0.053993]
[1641361760009,0.00121778,46309.0,46303.0,0.355624]
[1641361760211,0.107983,46307.0,46303.0,0.355624]
[1641361760510,0.107983,46307.0,46299.0,0.0483]
[1641361760710,0.05398511,46304.0,46303.0,0.374624]
[1641361761110,0.05398511,46304.0,46303.0,0.417924]
[1641361761814,0.10796346,46309.0,46307.0,0.00385983]
[1641361762609,0.10796346,46309.0,46307.0,0.01885983]
[1641361763250,0.10796346,46309.0,46307.0,0.07284083]
[1641361763450,0.10796346,46309.0,46308.0,0.00033157]
[1641361763850,0.10796346,46309.0,46308.0,0.35579357]
[1641361764650,0.10796346,46309.0,46308.0,0.37179357]
[1641361765952,0.10796346,46309.0,46308.0,0.35579357]
[1641361766353,0.32796346,46309.0,46308.0,0.35579357]
[1641361766754,0.32796346,46309.0,46308.0,0.84179357]
[1641361767201,0.32796346,46309.0,46308.0,0.37179357]
[1641361768003,0.32796346,46309.0,46308.0,0.40409357]
[1641361768705,0.32796346,46309.0,46308.0,0.42009357]
[1641361769606,0.32796346,46309.0,46308.0,1.09009357]
[1641361770003,0.32796346,46309.0,46308.0,1.07409357]
[1641361770651,0.32796346,46309.0,46308.0,1.08909357]
[1641361772550,0.32796346,46309.0,46308.0,1.07409357]
[1641361772849,0.32796346,46309.0,46308.0,1.08909357]
[1641361773851,0.32796346,46309.0,46308.0,1.07409357]
[1641361774705,0.32796346,46309.0,46308.0,1.08909357]
[1641361775902,0.32796346,46309.0,46308.0,1.07409357]
[1641361776705,0.32796346,46309.0,46308.0,1.08909357]
[1641361778006,0.32796346,46309.0,46308.0,1.07409357]
[1641361778655,0.32796346,46309.0,46308.0,2.23409357]
[1641361779459,0.32796346,46309.0,46308.0,1.09009357]
[1641361779861,0.32796346,46309.0,46308.0,1.07409357]
[1641361780660,0.32796346,46309.0,46308.0,0.42109357]
[1641361781459,0.32796346,46309.0,46308.0,0.30129357]
[1641361781460,0.61806676,46309.0,46308.0,0.30129357]
[1641361781660,0.37926172,46309.0,46308.0,0.017]
[1641361781913,0.37926172,46309.0,46307.0,0.00385983]
[1641361782107,0.05120683,46308.0,46299.0,0.4131]
[1641361782307,0.05399453,46304.0,46299.0,0.4131]
[1641361782610,0.26012361,46304.0,46299.0,0.4131]
[1641361782807,0.26012361,46304.0,46299.0,0.4641]
[1641361783209,0.26012361,46304.0,46302.0,0.053996]
[1641361783408,0.26996877,46304.0,46302.0,0.053996]
[1641361783611,0.16198077,46304.0,46302.0,0.053996]
[1641361783809,0.16198077,46304.0,46303.0,0.35546]
[1641361784208,0.05399352,46304.0,46303.0,0.35546]
[1641361784409,0.05399352,46304.0,46303.0,0.68604984]
[1641361784611,0.05399352,46304.0,46303.0,0.73465508]
[1641361784808,0.05399352,46304.0,46303.0,1.89665508]
[1641361785010,0.05399352,46304.0,46303.0,0.75265508]
[1641361785217,0.23240955,46309.0,46304.0,1.144]
[1641361785410,0.23240955,46309.0,46308.0,1.99936]
[1641361785659,0.23240955,46309.0,46308.0,2.04766]
[1641361786257,0.22,46309.0,46308.0,1.00158736]
[1641361786457,0.22,46309.0,46308.0,3.62036007]
[1641361786657,0.22,46309.0,46308.0,3.63436007]
[1641361788056,0.22,46309.0,46308.0,3.62036007]
[1641361788957,0.22,46309.0,46308.0,3.63536007]
[1641361790013,0.22,46309.0,46308.0,3.62036007]
[1641361790417,0.22,46309.0,46308.0,3.72036007]
[1641361790817,0.22,46309.0,46308.0,3.73536007]
[1641361792014,0.22,46309.0,46308.0,3.72036007]
[1641361792214,0.22,46309.0,46308.0,3.71980856]
[1641361792815,0.22,46309.0,46308.0,3.73780856]
[1641361793858,0.22,46309.0,46308.0,3.78780856]
[1641361794059,0.22,46309.0,46308.0,3.76980856]
[1641361794662,0.22,46309.0,46308.0,3.79080856]
[1641361795361,0.22,46309.0,46308.0,3.79110956]
[1641361795962,0.22,46309.0,46308.0,3.77010956]
[1641361796762,0.22,46309.0,46308.0,3.79310956]
[1641361797800,0.22,46309.0,46308.0,3.64310956]
[1641361798104,0.22,46309.0,46308.0,3.62010956]
[1641361798700,0.22,46309.0,46308.0,3.65410956]
[1641361799902,0.22,46309.0,46308.0,3.70410956]
[1641361800103,0.22,46309.0,46308.0,3.67010956]
[1641361800303,0.22,46309.0,46308.0,3.62010956]
[1641361800760,0.22,46309.0,46308.0,3.65410956]
[1641361801960,0.22,46309.0,46308.0,3.62010956]
[1641361802855,0.22,46309.0,46308.0,3.65410956]
[1641361804058,0.22,46309.0,46308.0,3.62010956]
[1641361804710,0.22,46309.0,46308.0,3.65410956]
[1641361806113,0.216747,46309.0,46308.0,3.62010956]
[1641361806814,0.216747,46309.0,46308.0,3.65310956]
[1641361808017,0.216747,46309.0,46308.0,3.62010956]
[1641361808850,0.216747,46309.0,46308.0,3.65410956]
[1641361810050,0.216747,46309.0,46308.0,3.67010956]
[1641361810252,0.216747,46309.0,46308.0,3.62010956]
[1641361810751,0.216747,46309.0,46308.0,3.65410956]
[1641361812002,0.216747,46309.0,46308.0,3.62010956]
[1641361812311,0.00273905,46319.0,46313.0,0.05398]
[1641361812503,0.00273905,46319.0,46316.0,0.41]
[1641361812702,0.00273905,46319.0,46317.0,0.0483]
[1641361812903,0.05671005,46319.0,46317.0,0.0483]
[1641361813303,0.05671005,46319.0,46317.0,0.102269]
[1641361813904,0.11068309,46319.0,46317.0,0.102269]
[1641361814505,0.16466109,46319.0,46317.0,0.0483]
[1641361814906,0.16466109,46319.0,46317.0,0.035]
[1641361815507,0.38466109,46319.0,46317.0,0.035]
[1641361815957,0.38393083,46319.0,46317.0,0.035]
[1641361816157,0.10722732,46316.0,46312.0,0.0483]
[1641361816352,0.053981,46315.0,46312.0,0.0483]
[1641361816752,0.053981,46315.0,46312.0,0.0783]
[1641361817153,0.053981,46315.0,46313.0,0.053981]
[1641361818152,0.05398054,46314.0,46313.0,0.053981]
[1641361818756,0.05398054,46314.0,46313.0,0.084981]
[1641361819403,0.16194638,46315.0,46313.0,0.084981]
[1641361819607,0.10796211,46315.0,46313.0,0.084981]
[1641361820205,0.10796211,46315.0,46313.0,0.053981]
[1641361820806,0.10796211,46315.0,46313.0,0.087981]
[1641361822106,0.10796211,46315.0,46314.0,0.0483]
[1641361822907,0.10796211,46315.0,46314.0,0.0913]
[1641361823550,0.05398111,46315.0,46314.0,0.0913]
[1641361824147,0.05398111,46315.0,46314.0,0.0483]
[1641361824749,0.05398111,46315.0,46314.0,0.0933]
[1641361826052,0.05398111,46315.0,46314.0,0.0483]
[1641361826911,0.05398111,46315.0,46314.0,0.0923]
[1641361828110,0.05398111,46315.0,46314.0,0.0483]
[1641361828911,0.05398111,46315.0,46314.0,0.0933]
[1641361830112,0.05398111,46315.0,46314.0,0.0483]
[1641361830956,0.05398111,46315.0,46314.0,0.0943]
[1641361831955,0.05398111,46315.0,46314.0,0.09459592]
[1641361832156,0.05398111,46315.0,46314.0,0.04859592]
[1641361832958,0.05398111,46315.0,46314.0,0.09459592]
[1641361834160,0.05398111,46315.0,46314.0,0.04859592]
[1641361834601,0.05398111,46315.0,46314.0,0.04879592]
[1641361834802,0.05398111,46315.0,46314.0,0.10679592]
[1641361836003,0.05398111,46315.0,46314.0,0.04879592]
[1641361836906,0.05398111,46315.0,46314.0,0.07379592]
[1641361838155,0.05398111,46315.0,46314.0,0.04879592]
[1641361838956,0.05398111,46315.0,46314.0,0.07579592]
[1641361840157,0.05398111,46315.0,46314.0,0.04879592]
[1641361840957,0.05398111,46315.0,46314.0,0.07479592]
[1641361842811,0.05398111,46315.0,46314.0,0.07579592]
[1641361844212,0.05398111,46315.0,46314.0,0.04879592]
[1641361844816,0.05398111,46315.0,46314.0,0.07479592]
[1641361846152,0.05398111,46315.0,46314.0,0.04879592]
[1641361846751,0.32590497,46315.0,46314.0,0.04879592]
[1641361846951,0.32590497,46315.0,46314.0,0.07279592]
[1641361848153,0.32590497,46315.0,46314.0,0.04879592]
[1641361848953,0.32590497,46315.0,46314.0,0.06979592]
[1641361850404,0.32590497,46315.0,46314.0,0.04879592]
[1641361851005,0.32590497,46315.0,46314.0,0.09579592]
[1641361851207,0.27130764,46315.0,46314.0,0.09579592]
[1641361851707,0.05398111,46315.0,46314.0,0.09579592]
[1641361852105,0.05398111,46315.0,46314.0,0.04879592]
[1641361852906,0.05398111,46315.0,46314.0,0.09479592]
[1641361853154,0.26947279,46315.0,46314.0,0.09479592]
[1641361853356,0.27016202,46315.0,46314.0,0.09479592]
[1641361854153,0.27016202,46315.0,46314.0,0.04879592]
[1641361854457,0.72562202,46315.0,46314.0,0.00049592]
[1641361854665,1.25691223,46315.0,46314.0,0.00049592]
[1641361854856,1.26491223,46315.0,46314.0,0.01249592]
[1641361855252,0.73491223,46315.0,46314.0,0.01249592]
[1641361855456,0.83491223,46315.0,46314.0,0.01249592]
[1641361856053,0.61873132,46315.0,46314.0,0.01249592]
[1641361856253,0.61073132,46315.0,46314.0,0.00049592]
[1641361856652,1.19210395,46315.0,46314.0,0.00049592]
[1641361856908,1.20310395,46315.0,46314.0,0.00849592]
[1641361858106,0.76210395,46315.0,46314.0,0.00049592]
[1641361858309,0.15527132,46315.0,46314.0,0.00049592]
[1641361858908,0.50627132,46315.0,46314.0,0.00949592]
[1641361859608,0.16627132,46315.0,46314.0,0.00949592]
[1641361860216,0.11627132,46315.0,46314.0,0.00949592]
[1641361860511,0.06498111,46315.0,46314.0,0.00949592]
[1641361860770,0.05398111,46315.0,46314.0,0.00049592]
[1641361860967,0.06098111,46315.0,46314.0,0.01149592]
[1641361862269,0.05398111,46315.0,46314.0,0.00049592]
[1641361863068,0.05398111,46315.0,46314.0,0.00949592]
[1641361864271,0.05398111,46315.0,46314.0,0.00049592]
[1641361864906,0.05398111,46315.0,46314.0,0.01049592]
[1641361866108,0.05398111,46315.0,46314.0,0.00049592]
[1641361866907,0.05398111,46315.0,46314.0,0.00949592]
[1641361868171,0.05398111,46315.0,46314.0,0.00049592]
[1641361868967,0.05398111,46315.0,46314.0,0.00949592]
[1641361870770,0.05398111,46315.0,46314.0,0.00049592]
[1641361870970,0.05398111,46315.0,46314.0,0.00949592]
[1641361872208,0.05398111,46315.0,46314.0,0.00049592]
[1641361873111,0.05398111,46315.0,46314.0,0.00949592]
[1641361873909,0.05519876,46315.0,46314.0,0.00949592]
[1641361874112,0.41065876,46315.0,46314.0,0.00949592]
[1641361874309,0.46065876,46315.0,46314.0,0.00049592]
[1641361874510,0.51065876,46315.0,46314.0,0.00049592]
[1641361875011,0.51065876,46315.0,46314.0,0.00449592]
[1641361875411,0.31916166,46312.0,46304.0,0.4131]
[1641361875671,0.10798996,46307.0,46304.0,0.4131]
[1641361876865,0.053995,46306.0,46304.0,0.4131]
[1641361877064,0.10798998,46306.0,46304.0,0.4281]
[1641361878267,0.10798998,46306.0,46304.0,0.4131]
[1641361879065,0.10798998,46306.0,46304.0,0.4281]
[1641361879705,0.10798998,46306.0,46305.0,0.00027707]
[1641361879905,0.05399498,46306.0,46305.0,0.00027707]
[1641361880910,0.05399498,46306.0,46305.0,0.01527707]
[1641361882306,0.05399498,46306.0,46305.0,0.00027707]
[1641361883165,0.05399498,46306.0,46305.0,0.01427707]
[1641361884362,0.05399498,46306.0,46305.0,0.00027707]
[1641361884964,0.05399498,46306.0,46305.0,0.01727707]
[1641361886766,0.05399498,46306.0,46305.0,0.00027707]
[1641361887011,0.05399498,46306.0,46305.0,0.01727707]
[1641361888411,0.05399498,46306.0,46305.0,0.00027707]
[1641361889113,0.05399498,46306.0,46305.0,0.01727707]
[1641361890216,0.05399498,46306.0,46305.0,0.00027707]
[1641361891074,0.05399498,46306.0,46305.0,0.01727707]
[1641361892275,0.05399498,46306.0,46305.0,0.00027707]
[1641361892975,0.05399498,46306.0,46305.0,0.01627707]